[Event "European Women-ch 2023"]
[Site "Petrovac"]
[Date "2023.03.21"]
[Round "4.9"]
[White "Donghvani, Nia"]
[Black "Mayrhuber, Nikola"]
[Result "1-0"]
[ECO "E17"]
[WhiteElo "2025"]
[BlackElo "2162"]
[Annotator "TA"]
[PlyCount "83"]
[EventDate "2023.03.15"]
[EventType "swiss"]
[EventCountry "MNE"]
[SourceTitle "playchess.com"]
[Source "ChessBase"]
[SourceQuality "1"]
[TimeControl "40/5400+30:1800+30"]

{[%evp 13,83,0,32,24,45,20,54,25,20,-1,-9,-12,0,-13,-19,-15,-16,-20,18,12,29,20,14,0,0,0,135,132,558,556,536,400,394,399,389,391,364,378,481,289,272,279,364,246,537,587,596,597,569,552,589,586,704,702,699,694,681,488,658,636,29946,1298,5543,1004,29993,29994,29994,29995,29995,29993,29993,749]} 1. d4 {[%emt 0:00:15]} Nf6 {[%emt 0:00:07]} 2. c4 {[%emt 0:00:43]} e6 {[%emt 0:00:05]} 3. Nf3 {[%emt 0:00:13]} b6 {[%emt 0:00:08]} 4. g3 {[%emt 0:00:36]} Bb7 {[%emt 0:00:04]} 5. Bg2 {[%emt 0:00:04]} Be7 {[%emt 0:00:05]} 6. Nc3 {[%emt 0:01:32]} Ne4 {[%emt 0:01:52]} 7. Bd2 {[%emt 0:02:18]} Nxd2 {[%emt 0:05:02]} 8. Qxd2 {[%emt 0:00:04] E17: Queen's Indian: 4 g3 Bb7 5 Bg2 Be7.} d5 {[%emt 0:00:17]} 9. Ne5 {[%emt 0:04:51]} O-O {[%emt 0:08:33]} 10. O-O {[%emt 0:00:40] White is slightly better.} c6 {[%emt 0:08:21][%cal Bc7c6,Bc6c5][%mdl 32]} 11. b3 {[%emt 0:18:42]} Nd7 {[%emt 0:01:44] [#]} 12. Nd3 $146 {[%emt 0:13:15]} ({Predecessor:} 12. Nxd7 Qxd7 13. Rad1 Ba6 14. Qd3 Rad8 15. Rfe1 Qc8 16. e4 dxc4 17. bxc4 e5 18. d5 {½-½ Baumbach,F (2345)-Seils,J (2330) Oberliga Nord O 9293 1992}) 12... Nf6 {[%emt 0:03:01]} 13. Ne5 {[%emt 0:02:10]} Rc8 {[%emt 0:04:13]} 14. Rfd1 {[%emt 0:01:53]} Qc7 {[%emt 0:16:14]} 15. e4 {[%emt 0:01:25]} c5 {[%emt 0:04:16] [#] Strongly threatening ...cxd4.} 16. Nb5 {[%emt 0:05:18] A dynamic duo of knights.} Qb8 {[%emt 0:02:47]} 17. exd5 {[%emt 0:01:06]} exd5 {[%emt 0:02:46]} 18. Re1 {[%emt 0:11:43]} Rfe8 {[%emt 0:01:53]} 19. cxd5 {[%emt 0:02:48] [#] aiming for Nc6.} Nxd5 {[%emt 0:08:51]} (19... a6 $1 $11 {keeps the balance.} 20. d6 (20. Nc3 cxd4 21. Na4 Bxd5 $15) 20... Bxg2 21. Kxg2 axb5 22. dxe7 Qb7+ 23. Nf3 Ne4) 20. dxc5 $16 {[%emt 0:02:03] White is much more active.} Nf6 {[%emt 0:23:46][%mdl 8192] Black cannot hold the game after this.} (20... Rcd8 $16 {is more resistant.}) 21. c6 $18 {[%emt 0:05:22]} Ba6 {[%emt 0:03:04]} 22. c7 {[%emt 0:03:33]} Rxc7 {[%emt 0:00:06]} 23. Nxc7 {[%emt 0:00:04]} Qxc7 {[%emt 0:00:07]} 24. Rac1 {[%emt 0:00:44]} Bc5 {[%emt 0:01:29]} 25. b4 {[%emt 0:06:13]} Rxe5 {[%emt 0:00:09]} 26. bxc5 {[%emt 0:00:01]} Rxc5 {[%emt 0:01:09]} 27. Rxc5 {[%emt 0:00:23]} bxc5 {[%emt 0:00:34]} 28. Qe3 $40 {[%emt 0:00:54][%cal Oe3e8][%mdl 128] Intending Qe8+! and mate. White attacks with force.} g6 $2 {[%emt 0:00:33]} (28... h6 {might work better.} 29. Rc1 Qa5 30. Qxc5 Qxa2 31. Qxa7 Qb2) 29. Qe7 {[%emt 0:04:44]} Qb6 {[%emt 0:00:03]} 30. Rd1 {[%emt 0:00:08] Against Bd3} Kg7 {[%emt 0:00:11]} 31. h3 {[%emt 0:00:17]} Bc4 {[%emt 0:02:18]} 32. Rd8 {[%emt 0:01:44][%csl Gd8][%cal Re7f8]} Qb1+ {[%emt 0:01:02]} 33. Kh2 {[%emt 0:00:04][%csl Gd8][%cal Re7f8]} g5 {[%emt 0:00:59]} 34. Qxc5 {[%emt 0:01:41]} Bxa2 {[%emt 0:00:32]} 35. Qxg5+ {[%emt 0:00:46]} Qg6 {[%emt 0:00:07]} 36. Qc5 {[%emt 0:02:41][%csl Gd8][%cal Rc5f8]} Ne4 {[%emt 0:00:57]} 37. Qf8+ {[%emt 0:01:11]} Kf6 {[%emt 0:00:07]} 38. Qh8+ {[%emt 0:00:59]} (38. Rd4 $142 Bb1 39. Bxe4 {[%mdl 64] Remove Defender} Bxe4 40. Rd6+ Kf5 41. Qe7 Qxd6 42. Qxd6) 38... Kf5 {[%emt 0:00:49]} 39. Bxe4+ {[%emt 0:00:13] White mates.} Kxe4 {[%emt 0:00:05]} 40. Qd4+ {[%emt 0:00:00]} Kf5 {[%emt 0:00:00]} 41. Qf4+ {[%emt 0:00:10]} Ke6 {[%emt 0:00:39]} 42. Rd6+ {[%emt 0:00:23] Weighted Error Value: White=0.21 (precise) /Black=0.82} (42. Qd6+ $142 Kf5 43. g4+ Qxg4 44. hxg4+ Kxg4 45. Qf6 Bb1 46. Rd4+ Be4 47. Rxe4+ Kh5 48. Rh4#) 1-0

[Event "European Women-ch 2023"]
[Site "Petrovac"]
[Date "2023.03.21"]
[Round "4.10"]
[White "Daulyte-Cornette, Deimante"]
[Black "Fataliyeva, Ulviyya"]
[Result "1-0"]
[ECO "C02"]
[WhiteElo "2344"]
[BlackElo "2427"]
[Annotator "TA"]
[PlyCount "85"]
[EventDate "2023.03.15"]
[EventType "swiss"]
[EventCountry "MNE"]
[SourceTitle "playchess.com"]
[Source "ChessBase"]
[SourceQuality "1"]
[TimeControl "40/5400+30:1800+30"]

{[%evp 17,85,0,11,11,18,20,17,17,17,21,12,16,20,0,0,0,44,45,45,35,64,47,86,93,86,83,102,107,177,172,167,116,154,124,110,120,122,118,118,122,208,197,218,221,424,307,311,304,572,542,1234,882,1859,895,888,843,2089,0,1719,1554,2539,2578,2092,1622,5758,5672,5018,5018,1984,1737]} 1. e4 {[%emt 0:00:02]} e6 {[%emt 0:00:09]} 2. d4 {[%emt 0:00:14]} d5 {[%emt 0:00:04]} 3. e5 {[%emt 0:00:06]} c5 {[%emt 0:00:05]} 4. c3 {[%emt 0:00:05]} Nc6 {[%emt 0:00:12]} 5. Nf3 {[%emt 0:00:17]} Bd7 {[%emt 0:00:05]} 6. Be2 {[%emt 0:00:35]} Nge7 {[%emt 0:00:40]} 7. Na3 {[%emt 0:00:56]} cxd4 {[%emt 0:00:21]} 8. cxd4 {[%emt 0:00:07]} Nf5 {[%emt 0:00:05]} 9. Nc2 {[%emt 0:00:19]} Be7 {[%emt 0:00:18] The modern move.} 10. O-O {[%emt 0:01:48] C02: French: Advance Variation.} O-O {[%emt 0:00:08]} 11. Bd3 {[%emt 0:06:50]} f6 {[%emt 0:00:05]} 12. Bxf5 {[%emt 0:12:09] The position is equal.} exf5 {[%emt 0:00:19]} 13. Re1 {[%emt 0:00:10]} Be8 {[%emt 0:14:40] [#]} 14. Qd3 $146 {[%emt 0:19:53]} ({Predecessor:} 14. exf6 Bxf6 15. Ne5 Qb6 16. b3 Kh8 17. Qd3 Bxe5 18. dxe5 f4 19. Ba3 Bg6 20. Qd2 {0-1 Bwalya,G (2291)-Gupta,A (2619) Mansa Chilufya Memorial 2017 (9)}) 14... Rc8 {[%emt 0:13:26][%cal Of5f4]} 15. Bd2 {[%emt 0:11:32]} f4 {[%emt 0:01:10]} 16. Rac1 {[%emt 0:05:30]} (16. Bxf4 $2 {is the wrong capture.} fxe5 17. Bxe5 Bg6 $19) 16... g5 {[%emt 0:07:09]} 17. exf6 {[%emt 0:03:14]} Bxf6 {[%emt 0:04:12]} 18. Nb4 {[%emt 0:00:49]} Bg6 {[%emt 0:09:42]} 19. Qb3 {[%emt 0:02:51]} Bf7 {[%emt 0:10:40]} (19... Nxd4 $2 20. Rxc8 Nxb3 21. Rxd8 Rxd8 22. axb3 $18) 20. Nxc6 {[%emt 0:01:27]} bxc6 {[%emt 0:00:04]} 21. Ne5 {[%emt 0:00:35] White is much more active.} Re8 {[%emt 0:10:20]} 22. Nxf7 {[%emt 0:04:05]} ({But not} 22. Nxc6 Rxe1+ 23. Bxe1 Qd7 $17) 22... Rxe1+ {[%emt 0:01:49]} (22... Kxf7 $16 23. Rxe8 Qxe8) 23. Rxe1 $18 {[%emt 0:00:13]} Kxf7 {[%emt 0:00:03]} 24. Qd3 {[%emt 0:01:22]} ({Don't do} 24. Qh3 Kg7 $16) (24. h4 $18) 24... Kg7 {[%emt 0:02:04] [#]} 25. h4 $1 {[%emt 0:00:18][%mdl 512]} Qd7 {[%emt 0:00:39]} 26. hxg5 {[%emt 0:01:16]} Bxg5 {[%emt 0:00:02]} 27. Re5 {[%emt 0:01:21]} h6 {[%emt 0:01:22]} 28. Rf5 $36 {[%emt 0:15:50][%mdl 2048] White is on the roll.} Re8 {[%emt 0:04:09]} (28... Qc7 $16 29. g3 Rf8) 29. Bxf4 {[%emt 0:01:16]} Re1+ {[%emt 0:02:30]} 30. Kh2 {[%emt 0:00:05]} Re4 $2 {[%emt 0:00:49]} (30... Bxf4+ {keeps fighting.} 31. Rxf4 Re6) 31. Be5+ {[%emt 0:00:28]} Kg8 {[%emt 0:00:30]} 32. Qf3 {[%emt 0:01:21]} Qe7 {[%emt 0:02:10] Prevents Rf8+} (32... Qe8 {was worth a try.} 33. g3 Be7) 33. g3 {[%emt 0:00:42]} Re1 {[%emt 0:01:17]} 34. Kg2 {[%emt 0:01:15] [#] Hoping for Qg4.} Qe8 {[%emt 0:00:54]} 35. Qa3 {[%emt 0:04:21]} (35. Qg4 $142 Qg6 36. Rf3) 35... Qe7 {[%emt 0:02:47]} 36. Qb3 {[%emt 0:00:26] Qb8+ is the strong threat.} Qd7 {[%emt 0:00:55]} 37. Qf3 {[%emt 0:01:27] White threatens Rf8+ and mate.} Qe8 {[%emt 0:00:03] Dodges Rf8+} 38. Qg4 {[%emt 0:01:15] White is clearly winning.} Qg6 {[%emt 0:03:11]} 39. Rf3 {[%emt 0:00:53] Qc8+ would kill now.} Qe8 {[%emt 0:00:59] Prevents Qc8} 40. Qf5 {[%emt 0:00:00]} c5 {[%emt 0:00:00]} 41. Rb3 {[%emt 0:04:31] Intending Rb7 and mate.} Rxe5 {[%emt 0:00:49]} 42. dxe5 {[%emt 0:00:25]} d4 {[%emt 0:00:05]} 43. Qe4 {[%emt 0:01:12] Weighted Error Value: White=0.28 (precise) /Black=0.50} 1-0

[Event "European Women-ch 2023"]
[Site "Petrovac"]
[Date "2023.03.21"]
[Round "4.10"]
[White "Chelushkina, Irina"]
[Black "Mkrtchyan, Mariam"]
[Result "1/2-1/2"]
[ECO "C54"]
[WhiteElo "2207"]
[BlackElo "2343"]
[Annotator "TA"]
[PlyCount "166"]
[EventDate "2023.03.15"]
[EventType "swiss"]
[EventCountry "MNE"]
[SourceTitle "playchess.com"]
[Source "ChessBase"]
[SourceQuality "1"]
[TimeControl "40/5400+30:1800+30"]

{[%evp 14,166,8,0,20,0,9,10,4,5,14,15,20,0,0,0,0,0,0,0,0,-10,-10,-8,-7,-7,-12,-7,22,24,29,14,20,0,0,0,18,0,23,-1,0,0,18,18,28,42,33,20,9,23,29,0,0,0,0,0,0,0,0,0,26,33,39,32,29,33,192,186,225,225,292,286,278,273,366,336,620,666,4132,897,2474,308,289,155,316,171,210,125,145,145,699,699,697,690,650,308,283,160,167,77,84,77,82,82,84,84,88,89,167,162,167,82,82,82,82,82,82,76,82,77,87,84,87,82,87,12,81,81,81,81,87,82,87,81,87,77,81,12,82,81,82,77,82,81,81,0,87,81,87,74,82,77,77,76,83]} 1. e4 {[%emt 0:00:07]} e5 {[%emt 0:00:08]} 2. Nf3 {[%emt 0:00:26]} Nc6 {[%emt 0:00:07]} 3. Bc4 {[%emt 0:02:16]} Bc5 {[%emt 0:00:09]} 4. c3 {[%emt 0:00:13]} Nf6 {[%emt 0:00:44]} 5. d3 {[%emt 0:00:04]} d6 {[%emt 0:03:25]} 6. Bb3 {[%emt 0:00:35]} h6 {[%emt 0:01:11]} 7. Nbd2 {[%emt 0:00:34] 7.0-0 is vanishing.} O-O {[%emt 0:02:29]} 8. O-O {[%emt 0:02:30]} Re8 {[%emt 0:01:09] C54: Giuoco Piano: 4 c3 Nf6, main lines with 5 d4 and 5 d3.} 9. h3 {[%emt 0:02:08]} a5 {[%emt 0:09:27]} 10. Re1 {[%emt 0:01:05]} Be6 {[%emt 0:04:49] The position is equal.} 11. Ba4 {[%emt 0:01:56][%cal Od3d4]} Bd7 {[%emt 0:00:51]} 12. Nf1 {[%emt 0:00:15]} Qb8 {[%emt 0:01:02]} 13. Bc2 {[%emt 0:07:43]} Qa7 {[%emt 0:09:05]} 14. Be3 {[%emt 0:02:17]} Bxe3 {[%emt 0:00:06]} 15. Nxe3 {[%emt 0:00:19] [#]} a4 $146 {[%emt 0:00:25]} ({Predecessor:} 15... Ne7 16. d4 Ng6 17. a4 Nf4 18. Nc4 Be6 19. Ne3 Bd7 20. Rb1 Rad8 21. Nh4 g6 22. Qd2 Kg7 {1-0 Colin,S (2431)-Williamson,D (2390) ENG-SWE email 2018 [2]}) 16. a3 {[%emt 0:07:29]} b5 {[%emt 0:01:48]} 17. Nd5 {[%emt 0:05:24]} Nxd5 {[%emt 0:05:24]} 18. exd5 {[%emt 0:00:06]} Ne7 {[%emt 0:01:59]} 19. d4 {[%emt 0:00:00]} exd4 {[%emt 0:01:20]} 20. Nxd4 {[%emt 0:00:04][%cal Bf3d4,Bd4c2,Bc2e3][%mdl 32]} g6 {[%emt 0:24:07]} 21. Qd2 {[%emt 0:03:41]} Kg7 {[%emt 0:00:39]} 22. Be4 {[%emt 0:02:34]} Ng8 {[%emt 0:00:45]} 23. Bf3 {[%emt 0:00:52]} Re5 {[%emt 0:03:59]} 24. Nc2 {[%emt 0:11:09][%cal Oc3c4]} Rae8 {[%emt 0:00:39]} (24... Qc5 {is more complex.} 25. Rad1 Nf6 26. Qf4 Rae8) 25. Ne3 {[%emt 0:00:11]} f5 {[%emt 0:03:02]} 26. Qd4 {[%emt 0:00:59]} Qc5 {[%emt 0:01:22]} 27. Red1 {[%emt 0:00:21][%cal Be1d1,Bd1d4,Bd4b4][%mdl 32]} Nf6 {[%emt 0:02:02]} 28. c4 {[%emt 0:04:45]} b4 {[%emt 0:08:00]} 29. Qxc5 {[%emt 0:06:45]} dxc5 {[%emt 0:00:03]} 30. axb4 {[%emt 0:00:06]} cxb4 {[%emt 0:00:03]} 31. c5 {[%emt 0:00:09] Strongly threatening Nc4.} Bb5 {[%emt 0:02:09] Against Nc4} 32. Rd4 {[%emt 0:07:53]} (32. c6 $5 {[%cal Rd1d4]}) 32... b3 {[%emt 0:00:04]} 33. g4 {[%emt 0:16:05]} fxg4 {[%emt 0:03:17]} 34. hxg4 {[%emt 0:00:02]} c6 {[%emt 0:00:49]} 35. Rb4 {[%emt 0:02:13]} Ne4 {[%emt 0:02:46]} 36. Rc1 {[%emt 0:07:27]} Nxf2 {[%emt 0:03:52][%mdl 64] Discovered Attack, Remove Defender} 37. Kxf2 {[%emt 0:03:52]} Rxe3 {[%emt 0:00:01]} 38. dxc6 {[%emt 0:01:39]} Be2 {[%emt 0:00:25]} 39. Bg2 {[%emt 0:00:00] And now Re1 would win.} R3e7 $2 {[%emt 0:00:00]} (39... Rd3 $14) 40. Re1 $18 {[%emt 0:00:00]} ({Don't take} 40. Rxa4 $6 Rd8 $16) 40... Rf7+ {[%emt 0:00:00]} 41. Kg1 {[%emt 0:06:27]} h5 {[%emt 0:13:57]} 42. gxh5 {[%emt 0:03:27]} gxh5 {[%emt 0:00:04]} 43. Rxa4 {[%emt 0:01:25]} Re6 {[%emt 0:10:21]} 44. Rb4 {[%emt 0:08:09] Prevents Bc4. Hoping for Rb7.} Bc4 $2 {[%emt 0:00:04]} (44... Rf5 45. Rc1 Ba6 46. Rxb3 Rg5) 45. Rxe6 {[%emt 0:01:13]} Bxe6 {[%emt 0:00:01][%mdl 4096] Endgame KRB-KRB} 46. Rb7 {[%emt 0:01:00]} Kf6 {[%emt 0:03:16]} 47. Kh2 $2 {[%emt 0:04:19]} (47. Rxf7+ Kxf7 48. c7) 47... Re7 {[%emt 0:00:47]} 48. c7 {[%emt 0:02:49]} (48. Kg3 $18) 48... Bc8 $2 {[%emt 0:01:06]} (48... Bf5 $16 49. c6 (49. Rxb3 Rxc7 50. Rb5 Re7 $16) 49... h4 50. Rxb3 Rxc7) 49. Rxb3 {[%emt 0:02:23]} ({Less strong is} 49. Rb6+ Ke5 $16) (49. c6 $142) 49... Rxc7 {[%emt 0:00:04]} 50. c6 {[%emt 0:00:39]} (50. Rb6+ $18 Ke5 51. b4) 50... Ke7 {[%emt 0:01:02]} 51. Rb8 $1 {[%emt 0:01:30] aiming for b4. White is more active.} Kd6 $2 {[%emt 0:05:18][%mdl 8192]} (51... Be6 $16 52. b4 Kd6 53. Rd8+ Ke7) 52. b4 $1 {[%emt 0:00:20]} Be6 {[%emt 0:01:27]} 53. Rd8+ {[%emt 0:01:11]} Ke7 {[%emt 0:00:39]} 54. Rh8 {[%emt 0:00:16]} (54. Rd2 $142) 54... Kd6 {[%emt 0:02:02] [#]} 55. Rxh5 {[%emt 0:00:38]} ({White must play} 55. Re8 $1 $18) 55... Re7 $16 {[%emt 0:01:38]} 56. Ra5 {[%emt 0:00:53]} (56. Rh8 $18) 56... Re8 {[%emt 0:01:19]} 57. Ra7 {[%emt 0:01:22]} Rb8 {[%emt 0:01:15]} 58. Rb7 {[%emt 0:00:25]} Rh8+ {[%emt 0:00:39]} 59. Kg3 {[%emt 0:00:24]} Rg8+ {[%emt 0:00:32]} 60. Kf2 {[%emt 0:00:06]} Bc8 {[%emt 0:00:06]} (60... Ra8 $16 {is a better defense.}) 61. Rb5 $18 {[%emt 0:01:02]} Kc7 {[%emt 0:00:17]} 62. Bf3 {[%emt 0:00:38] Against Rg4} (62. Re5 $18 {has better winning chances.}) 62... Ba6 $16 {[%emt 0:01:15]} 63. Rh5 {[%emt 0:02:02]} Kb6 {[%emt 0:00:02] Wards off b5} 64. Ke3 {[%emt 0:00:49]} Bb5 {[%emt 0:00:36]} 65. Rh6 {[%emt 0:01:55]} Rc8 {[%emt 0:00:06]} 66. Kd4 {[%emt 0:00:58]} Rc7 {[%emt 0:00:48]} 67. Bd5 {[%emt 0:00:21]} Ba4 {[%emt 0:00:59]} 68. Rd6 {[%emt 0:00:25]} (68. Rh8 {simplifies} Bxc6 69. Rh6 Kb5 70. Bxc6+ Kxb4 71. Bd5) 68... Bb5 {[%emt 0:00:03]} 69. Kc3 {[%emt 0:00:55]} ({Better is} 69. Rd8 $16 {Intending Rb8+ and mate.} Bxc6 70. Be6) 69... Ba4 {[%emt 0:00:07]} (69... Rg7 $11) 70. Kc4 {[%emt 0:00:06]} Bb5+ {[%emt 0:00:09]} 71. Kd4 {[%emt 0:00:04]} Ba4 {[%emt 0:00:03]} 72. Rh6 {[%emt 0:00:08]} (72. Rd8 {simplifies} Bxc6 73. Rd6 Kb5 74. Bxc6+ Kxb4 75. Bd5) 72... Bb5 {[%emt 0:00:03]} 73. Be4 {[%emt 0:00:28]} Ba4 {[%emt 0:00:12]} 74. Kc4 {[%emt 0:00:21]} (74. Rh8 {simplifies} Bxc6 75. Rh6 Kb5 76. Bxc6+ Kxb4 77. Bd5) 74... Bb5+ {[%emt 0:00:03] [#]} 75. Kb3 {[%emt 0:00:02]} ({White should play} 75. Kc3 $1 $16) 75... Ka7 {[%emt 0:00:48]} (75... Re7 $1 $11 {remains equal.}) 76. Bf3 {[%emt 0:00:09]} Kb6 {[%emt 0:00:02][%cal Oc7e7]} 77. Bd5 {[%emt 0:00:04]} Ka7 {[%emt 0:00:21]} 78. Kc3 {[%emt 0:00:57]} Kb6 {[%emt 0:00:03]} 79. Kd4 {[%emt 0:00:04]} Ba4 $1 {[%emt 0:00:07]} 80. Rf6 {[%emt 0:01:52] White is better.} Bb5 {[%emt 0:00:04]} 81. Kc3 {[%emt 0:00:04]} Ba4 {[%emt 0:00:16]} 82. Kc4 {[%emt 0:00:06]} Bb5+ {[%emt 0:00:03]} 83. Kb3 {[%emt 0:00:03]} Ka7 {[%emt 0:00:07] White really could win this.   Weighted Error Value: White=0.33/Black=0.38} 1/2-1/2

[Event "European Women-ch 2023"]
[Site "Petrovac"]
[Date "2023.03.21"]
[Round "4.10"]
[White "Ter-Avetisjana, Agnesa Stepania"]
[Black "Zherebtsova, Alexandra"]
[Result "0-1"]
[ECO "B31"]
[WhiteElo "1974"]
[BlackElo "2155"]
[Annotator "TA"]
[PlyCount "90"]
[EventDate "2023.03.15"]
[EventType "swiss"]
[EventCountry "MNE"]
[SourceTitle "playchess.com"]
[Source "ChessBase"]
[SourceQuality "1"]
[TimeControl "40/5400+30:1800+30"]

{[%evp 11,90,25,39,38,43,40,34,39,32,14,18,14,16,0,14,8,24,0,14,14,14,13,13,16,23,9,6,-7,31,18,20,0,0,0,14,0,0,0,0,-30,-19,-46,-37,-73,-2,-36,0,-68,12,-147,-152,-294,-279,-280,-280,-256,-247,-235,-245,-223,-247,-235,-132,-159,-150,-136,-139,-154,-161,-334,-194,-390,-241,-470,-481,-455,-359,-330,-264,-366,-369]} 1. e4 {[%emt 0:00:09]} c5 {[%emt 0:00:02]} 2. Nf3 {[%emt 0:00:14]} Nc6 {[%emt 0:00:05]} 3. Bb5 {[%emt 0:00:10]} g6 {[%emt 0:00:48]} 4. O-O {[%emt 0:00:09]} Bg7 {[%emt 0:00:47]} 5. Re1 {[%emt 0:00:07]} a6 {[%emt 0:02:02]} 6. Bxc6 {[%emt 0:06:55]} dxc6 {[%emt 0:01:06]} 7. d3 {[%emt 0:00:33] B31: Sicilian: 2...Nc6 3 Bb5 g6.} Nf6 {[%emt 0:02:42]} 8. a4 {[%emt 0:02:45]} a5 {[%emt 0:03:20]} 9. Na3 {[%emt 0:04:24] White is slightly better.} O-O {[%emt 0:01:53]} 10. h3 {[%emt 0:02:57]} Qc7 {[%emt 0:03:57]} 11. Be3 {[%emt 0:01:42]} Nd7 {[%emt 0:07:19]} 12. Rb1 {[%emt 0:04:21] [#]} e5 $146 {[%emt 0:16:46]} ({Predecessor:} 12... b6 13. Qd2 Ne5 14. Nxe5 Bxe5 15. Bh6 Rd8 16. f4 Bd4+ 17. Kh1 Ba6 18. e5 c4 {1-0 Gupta,A (2066)-Bar Ziv,I (2083) Afroasian-ch14 sf-C email 2012}) 13. Qd2 {[%emt 0:03:20]} Rd8 {[%emt 0:02:25]} 14. Bh6 {[%emt 0:11:54]} Nf8 {[%emt 0:03:05]} 15. Bxg7 {[%emt 0:03:35]} Kxg7 {[%emt 0:00:04]} 16. Qc3 {[%emt 0:00:11][%csl LRc5,LRe5]} Nd7 {[%emt 0:03:48]} 17. Nd2 {[%emt 0:10:16]} f6 {[%emt 0:04:33]} 18. Rf1 {[%emt 0:03:15]} b6 {[%emt 0:08:09]} 19. Rbe1 {[%emt 0:05:11]} g5 {[%emt 0:03:03]} (19... Ba6 $5 {[%cal Rb6b5]}) 20. Ndc4 {[%emt 0:03:08][%cal Oh3h4]} Nf8 {[%emt 0:02:50][%cal Bd7f8,Bf8g6,Bg6f4][%mdl 32]} 21. Ne3 {[%emt 0:03:58]} Ng6 {[%emt 0:01:24]} 22. Kh2 {[%emt 0:11:36]} Be6 {[%emt 0:05:21]} 23. Nb1 {[%emt 0:03:58][%cal Ba3b1,Bb1d2,Bd2c4][%mdl 32]} h5 {[%emt 0:03:27]} 24. Nd2 {[%emt 0:03:46]} Rh8 {[%emt 0:02:16]} 25. f3 {[%emt 0:04:41]} Qd7 {[%emt 0:03:28]} 26. Kg1 {[%emt 0:03:14]} Nf4 {[%emt 0:01:56]} 27. Ndc4 {[%emt 0:02:38]} Rab8 {[%emt 0:06:36]} (27... Qd8 $17) 28. Kf2 {[%emt 0:00:25][%cal Oh3h4]} Kg6 {[%emt 0:03:46]} 29. Rh1 {[%emt 0:01:10]} (29. h4 $1 $11) 29... Qd4 {[%emt 0:03:20] Black is more active.} (29... h4 $1 $15) 30. Qxd4 $2 {[%emt 0:02:53] [#]} (30. h4 $11) 30... cxd4 $17 {[%emt 0:00:32]} 31. Nf1 {[%emt 0:01:29]} (31. Nf5 $17) 31... Bxc4 {[%emt 0:01:42]} 32. dxc4 {[%emt 0:00:01]} b5 {[%emt 0:00:26]} 33. axb5 {[%emt 0:01:02]} cxb5 {[%emt 0:00:07]} 34. g3 {[%emt 0:00:02]} Ne6 {[%emt 0:00:15]} 35. Nd2 {[%emt 0:00:34]} h4 {[%emt 0:01:21]} 36. gxh4 {[%emt 0:00:38]} Rxh4 {[%emt 0:00:16]} (36... bxc4 $19 37. Nxc4 Rhc8) 37. Ra1 {[%emt 0:00:37]} a4 {[%emt 0:00:48]} 38. cxb5 {[%emt 0:00:53]} Rxb5 {[%emt 0:00:06]} 39. b3 {[%emt 0:00:34]} axb3 {[%emt 0:00:22]} 40. Nxb3 {[%emt 0:00:00]} (40. cxb3 {is the only way for White.} Nf4 41. Kg3) 40... Nf4 {[%emt 0:00:00]} (40... d3 $142 41. Ra6 dxc2 42. Rxe6 Rxb3) 41. Ra5 $2 {[%emt 0:02:35]} (41. Ra2 {was worth a try.}) 41... Rb6 {[%emt 0:07:55] [#] ...d3 would be deadly.} (41... Nxh3+ 42. Rxh3 Rxa5 43. Rxh4 $14) 42. Ra3 $2 {[%emt 0:03:24]} (42. Ra2 {only move.}) 42... Rc6 $19 {[%emt 0:01:43]} (42... Rxh3 $2 {too greedy.} 43. Rxh3 Nxh3+ 44. Kg3 $19) ({Stronger than} 42... Nxh3+ 43. Kg3 Nf4 44. Rxh4 gxh4+ 45. Kxh4 $17) 43. Ra2 {[%emt 0:00:01]} Rxh3 {[%emt 0:00:37]} (43... Nxh3+ $2 {is the wrong capture.} 44. Kg3 Nf4 45. Rxh4 gxh4+ 46. Kxh4 $19) 44. Rxh3 {[%emt 0:00:06]} Nxh3+ {[%emt 0:00:03]} 45. Ke2 {[%emt 0:00:46]} Rc3 {[%emt 0:01:06] Weighted Error Value: White=0.40/Black=0.27 (precise)} 0-1